[Event "Titled Tuesday Blitz June 28 Late 2022"]
[White "Cappelletto, Joshuaede"]
[Black "Rustemov, Alexander"]
[WhiteFideId "2824383"]
[BlackFideId "4119002"]
[WhiteElo "1761"]
[BlackElo "2735"]
[Result "1/2-1/2"]
[Round "02"]
[TimeControl "180+1"]
[Date "2022.06.28"]
[WhiteClock "0:00:21"]
[BlackClock "0:00:25"]

1. e4 {[%clk 0:03:00]}  e6 {[%clk 0:02:59]} 2. d4 {[%clk 0:03:00]}  d5 {[%clk 0:03:00]} 3. Nc3 {[%clk 0:03:00]}  Bb4 {[%clk 0:02:59]} 4. e5 {[%clk 0:03:00]}  c5 {[%clk 0:02:59]} 5. a3 {[%clk 0:03:00]}  Bxc3+ {[%clk 0:02:59]} 6. bxc3 {[%clk 0:03:01]}  Qa5 {[%clk 0:02:59]} 7. Bd2 {[%clk 0:02:56]}  Qa4 {[%clk 0:02:58]} 8. Nf3 {[%clk 0:02:53]}  b6 {[%clk 0:02:56]} 9. h4 {[%clk 0:02:53]}  Ba6 {[%clk 0:02:53]} 10. h5 {[%clk 0:02:53]}  h6 {[%clk 0:02:49]} 11. Rh4 {[%clk 0:02:48]}  Bxf1 {[%clk 0:02:44]} 12. Kxf1 {[%clk 0:02:49]}  Ne7 {[%clk 0:02:38]} 13. Kg1 {[%clk 0:02:46]}  Qa6 {[%clk 0:02:30]} 14. Rg4 {[%clk 0:02:36]}  Nf5 {[%clk 0:02:30]} 15. Nh4 {[%clk 0:02:28]}  Nxh4 {[%clk 0:02:29]} 16. Rxh4 {[%clk 0:02:29]}  Nc6 {[%clk 0:02:16]} 17. Rg4 {[%clk 0:02:15]}  Kf8 {[%clk 0:02:13]} 18. Qf3 {[%clk 0:02:06]}  cxd4 {[%clk 0:01:59]} 19. cxd4 {[%clk 0:02:05]}  Rc8 {[%clk 0:01:49]} 20. Qg3 {[%clk 0:01:36]}  Rh7 {[%clk 0:01:42]} 21. Rxg7 {[%clk 0:01:31]}  Rxg7 {[%clk 0:01:37]} 22. Bxh6 {[%clk 0:01:31]}  Ke7 {[%clk 0:01:30]} 23. Bxg7 {[%clk 0:01:28]}  Qe2 {[%clk 0:01:29]} 24. Qh4+ {[%clk 0:01:21]}  Kd7 {[%clk 0:01:24]} 25. h6 {[%clk 0:01:21]}  Ne7 {[%clk 0:01:21]} 26. h7 {[%clk 0:01:13]}  Ng6 {[%clk 0:01:12]} 27. Qf6 {[%clk 0:01:13]}  Qg4 {[%clk 0:00:51]} 28. f3 {[%clk 0:00:41]}  Qxd4+ {[%clk 0:00:49]} 29. Kh2 {[%clk 0:00:39]}  Qxa1 {[%clk 0:00:49]} 30. Qxf7+ {[%clk 0:00:39]}  Ne7 {[%clk 0:00:49]} 31. Bf6 {[%clk 0:00:36]}  Re8 {[%clk 0:00:49]} 32. Qxe8+ {[%clk 0:00:27]}  Kxe8 {[%clk 0:00:47]} 33. h8=Q+ {[%clk 0:00:27]}  Kd7 {[%clk 0:00:48]} 34. Qb8 {[%clk 0:00:21]}  Qxa3 {[%clk 0:00:27]} 35. g4 {[%clk 0:00:21]}  Qc5 {[%clk 0:00:25]} 1/2-1/2


[Site "https://www.chess.com"]

[Event "Titled Tuesday Blitz June 28 Late 2022"]
[White "Caputcuoglu, Zeki Berke"]
[Black "Bobadilla Viera, Jorge Samuel"]
[WhiteFideId "34548610"]
[BlackFideId "3906353"]
[WhiteElo "1368"]
[BlackElo "2202"]
[Result "0-1"]
[Round "02"]
[TimeControl "180+1"]
[Date "2022.06.29"]
[WhiteClock "0:00:21"]
[BlackClock "0:00:17"]

1. e4 {[%clk 0:03:00]}  c5 {[%clk 0:03:00]} 2. Nf3 {[%clk 0:03:00]}  d6 {[%clk 0:03:01]} 3. d4 {[%clk 0:03:01]}  cxd4 {[%clk 0:03:01]} 4. Nxd4 {[%clk 0:03:01]}  Nf6 {[%clk 0:03:02]} 5. Nc3 {[%clk 0:03:02]}  a6 {[%clk 0:03:02]} 6. Be3 {[%clk 0:03:01]}  e5 {[%clk 0:03:00]} 7. Nb3 {[%clk 0:03:02]}  Be6 {[%clk 0:03:00]} 8. f3 {[%clk 0:03:01]}  Be7 {[%clk 0:02:57]} 9. Qd2 {[%clk 0:03:01]}  O-O {[%clk 0:02:57]} 10. O-O-O {[%clk 0:03:01]}  a5 {[%clk 0:02:57]} 11. a4 {[%clk 0:03:00]}  Na6 {[%clk 0:02:52]} 12. Bb5 {[%clk 0:02:59]}  Nc7 {[%clk 0:02:50]} 13. g4 {[%clk 0:02:58]}  d5 {[%clk 0:02:42]} 14. exd5 {[%clk 0:02:57]}  Nfxd5 {[%clk 0:02:39]} 15. Nxd5 {[%clk 0:02:55]}  Nxd5 {[%clk 0:02:36]} 16. Kb1 {[%clk 0:02:55]}  Qc7 {[%clk 0:02:23]} 17. Bg5 {[%clk 0:02:49]}  Bxg5 {[%clk 0:02:11]} 18. Qxg5 {[%clk 0:02:50]}  Rac8 {[%clk 0:02:10]} 19. Na1 {[%clk 0:02:26]}  Rfd8 {[%clk 0:02:07]} 20. Rhe1 {[%clk 0:02:05]}  f6 {[%clk 0:02:06]} 21. Qh4 {[%clk 0:02:02]}  Nf4 {[%clk 0:02:04]} 22. Qf2 {[%clk 0:01:59]}  Rxd1+ {[%clk 0:01:29]} 23. Rxd1 {[%clk 0:02:00]}  Rd8 {[%clk 0:01:30]} 24. Rxd8+ {[%clk 0:01:45]}  Qxd8 {[%clk 0:01:30]} 25. Kc1 {[%clk 0:01:46]}  g6 {[%clk 0:01:17]} 26. Qd2 {[%clk 0:01:43]}  Qc7 {[%clk 0:01:12]} 27. c3 {[%clk 0:01:37]}  Kg7 {[%clk 0:01:06]} 28. Nc2 {[%clk 0:01:35]}  Bd5 {[%clk 0:01:05]} 29. Qe3 {[%clk 0:01:30]}  h5 {[%clk 0:00:52]} 30. gxh5 {[%clk 0:01:19]}  Nxh5 {[%clk 0:00:52]} 31. Na3 {[%clk 0:01:06]}  Nf4 {[%clk 0:00:45]} 32. Nb1 {[%clk 0:01:03]}  f5 {[%clk 0:00:39]} 33. Nd2 {[%clk 0:01:01]}  Kf6 {[%clk 0:00:39]} 34. Kc2 {[%clk 0:00:55]}  b6 {[%clk 0:00:38]} 35. Nb3 {[%clk 0:00:48]}  g5 {[%clk 0:00:36]} 36. Nc1 {[%clk 0:00:46]}  Ne6 {[%clk 0:00:29]} 37. Nd3 {[%clk 0:00:44]}  e4 {[%clk 0:00:29]} 38. fxe4 {[%clk 0:00:42]}  Bxe4 {[%clk 0:00:30]} 39. Kc1 {[%clk 0:00:42]}  Bxd3 {[%clk 0:00:29]} 40. Bxd3 {[%clk 0:00:43]}  Qxh2 {[%clk 0:00:25]} 41. Qxb6 {[%clk 0:00:42]}  Qe5 {[%clk 0:00:22]} 42. Qb5 {[%clk 0:00:27]}  g4 {[%clk 0:00:20]} 43. Qxe5+ {[%clk 0:00:26]}  Kxe5 {[%clk 0:00:20]} 44. Kd2 {[%clk 0:00:26]}  f4 {[%clk 0:00:20]} 45. Ke2 {[%clk 0:00:26]}  f3+ {[%clk 0:00:19]} 46. Kf2 {[%clk 0:00:26]}  Kf4 {[%clk 0:00:19]} 47. b4 {[%clk 0:00:22]}  g3+ {[%clk 0:00:19]} 48. Kg1 {[%clk 0:00:22]}  g2 {[%clk 0:00:17]} 49. bxa5 {[%clk 0:00:20]}  Kg3 {[%clk 0:00:16]} 50. a6 {[%clk 0:00:21]}  f2# {[%clk 0:00:17]} 0-1


[Site "https://www.chess.com"]

[Event "Titled Tuesday Blitz June 28 Late 2022"]
[White "Chen, Max"]
[Black "Gulecyuz, Deniz"]
[WhiteFideId "2622440"]
[BlackFideId "30921341"]
[WhiteElo "2406"]
[BlackElo "1923"]
[Result "1-0"]
[Round "02"]
[TimeControl "180+1"]
[Date "2022.06.29"]
[WhiteClock "0:00:52"]
[BlackClock "0:00:59"]

1. e4 {[%clk 0:03:00]}  c5 {[%clk 0:02:59]} 2. c3 {[%clk 0:03:01]}  Nf6 {[%clk 0:02:59]} 3. e5 {[%clk 0:03:01]}  Nd5 {[%clk 0:03:00]} 4. d4 {[%clk 0:03:01]}  cxd4 {[%clk 0:03:00]} 5. Nf3 {[%clk 0:03:02]}  Nc6 {[%clk 0:03:00]} 6. Bc4 {[%clk 0:03:02]}  Nb6 {[%clk 0:03:00]} 7. Bb5 {[%clk 0:03:03]}  a6 {[%clk 0:02:55]} 8. Bxc6 {[%clk 0:03:02]}  dxc6 {[%clk 0:02:52]} 9. cxd4 {[%clk 0:03:02]}  g6 {[%clk 0:02:49]} 10. Bd2 {[%clk 0:02:52]}  Bg7 {[%clk 0:02:49]} 11. Ba5 {[%clk 0:02:48]}  Be6 {[%clk 0:02:46]} 12. Nc3 {[%clk 0:02:45]}  c5 {[%clk 0:02:26]} 13. d5 {[%clk 0:02:34]}  Bg4 {[%clk 0:02:26]} 14. Qb3 {[%clk 0:02:33]}  Bxf3 {[%clk 0:02:20]} 15. gxf3 {[%clk 0:02:34]}  Bxe5 {[%clk 0:02:20]} 16. Qxb6 {[%clk 0:02:29]}  Qc8 {[%clk 0:02:20]} 17. O-O-O {[%clk 0:02:20]}  Qf5 {[%clk 0:02:09]} 18. Ne4 {[%clk 0:02:01]}  Qxf3 {[%clk 0:02:02]} 19. Rhe1 {[%clk 0:02:01]}  O-O {[%clk 0:01:53]} 20. Kb1 {[%clk 0:01:54]}  Rfc8 {[%clk 0:01:43]} 21. Ka1 {[%clk 0:01:47]}  Bxh2 {[%clk 0:01:29]} 22. Bc3 {[%clk 0:01:04]}  Bd6 {[%clk 0:01:00]} 23. Nxd6 {[%clk 0:01:00]}  exd6 {[%clk 0:01:01]} 24. Qxd6 {[%clk 0:01:00]}  Re8 {[%clk 0:01:00]} 25. Qf6 {[%clk 0:00:52]}  Qxf6 {[%clk 0:00:59]} 26. Bxf6 {[%clk 0:00:52]} 1-0


[Site "https://www.chess.com"]

[Event "Titled Tuesday Blitz June 28 Late 2022"]
[White "Colpe, Malte"]
[Black "Wartiovaara, Oliver"]
[WhiteFideId "24623075"]
[BlackFideId "513024"]
[WhiteElo "2328"]
[BlackElo "1971"]
[Result "1-0"]
[Round "02"]
[TimeControl "180+1"]
[Date "2022.06.29"]
[WhiteClock "0:00:05"]
[BlackClock "0:00:02"]

1. e4 {[%clk 0:03:00]}  c5 {[%clk 0:02:57]} 2. Nc3 {[%clk 0:03:00]}  d6 {[%clk 0:02:57]} 3. d4 {[%clk 0:02:59]}  cxd4 {[%clk 0:02:58]} 4. Qxd4 {[%clk 0:02:59]}  Nc6 {[%clk 0:02:56]} 5. Qd2 {[%clk 0:03:00]}  g6 {[%clk 0:02:54]} 6. b3 {[%clk 0:03:00]}  Bh6 {[%clk 0:02:53]} 7. f4 {[%clk 0:02:59]}  Nf6 {[%clk 0:02:44]} 8. Bb2 {[%clk 0:02:58]}  e5 {[%clk 0:02:44]} 9. g3 {[%clk 0:02:56]}  O-O {[%clk 0:02:35]} 10. O-O-O {[%clk 0:02:56]}  Bg4 {[%clk 0:02:35]} 11. Be2 {[%clk 0:02:55]}  Nd4 {[%clk 0:02:22]} 12. Kb1 {[%clk 0:02:40]}  Rc8 {[%clk 0:02:08]} 13. Bxg4 {[%clk 0:02:30]}  Nxg4 {[%clk 0:02:08]} 14. h3 {[%clk 0:02:28]}  Nf6 {[%clk 0:02:07]} 15. Nge2 {[%clk 0:02:25]}  Bg7 {[%clk 0:01:33]} 16. Nxd4 {[%clk 0:02:22]}  exd4 {[%clk 0:01:34]} 17. Qxd4 {[%clk 0:01:54]}  Nxe4 {[%clk 0:01:32]} 18. Qxe4 {[%clk 0:01:54]}  Bxc3 {[%clk 0:01:28]} 19. Bxc3 {[%clk 0:01:48]}  Rxc3 {[%clk 0:01:26]} 20. Qxb7 {[%clk 0:01:41]}  a5 {[%clk 0:00:59]} 21. g4 {[%clk 0:01:24]}  a4 {[%clk 0:00:41]} 22. Qb4 {[%clk 0:01:19]}  Qc7 {[%clk 0:00:34]} 23. Rh2 {[%clk 0:01:07]}  axb3 {[%clk 0:00:30]} 24. axb3 {[%clk 0:01:08]}  Rc8 {[%clk 0:00:25]} 25. Qxd6 {[%clk 0:00:52]}  Qb7 {[%clk 0:00:20]} 26. Qd5 {[%clk 0:00:47]}  Qb4 {[%clk 0:00:19]} 27. Rd4 {[%clk 0:00:39]}  Qa3 {[%clk 0:00:18]} 28. Ra4 {[%clk 0:00:38]}  Qe7 {[%clk 0:00:18]} 29. Ra8 {[%clk 0:00:34]}  Qe1+ {[%clk 0:00:10]} 30. Kb2 {[%clk 0:00:33]}  Qe3 {[%clk 0:00:08]} 31. Rxc8+ {[%clk 0:00:29]}  Rxc8 {[%clk 0:00:09]} 32. Qe5 {[%clk 0:00:28]}  Qa7 {[%clk 0:00:05]} 33. Qe4 {[%clk 0:00:10]}  Ra8 {[%clk 0:00:05]} 34. Qa4 {[%clk 0:00:09]}  Qb7 {[%clk 0:00:05]} 35. Qc4 {[%clk 0:00:08]}  Qa7 {[%clk 0:00:04]} 36. Kc1 {[%clk 0:00:05]}  Qa1+ {[%clk 0:00:04]} 37. Kd2 {[%clk 0:00:06]}  Rd8+ {[%clk 0:00:03]} 38. Ke2 {[%clk 0:00:06]}  Qd1+ {[%clk 0:00:03]} 39. Kf2 {[%clk 0:00:06]}  Rd2+ {[%clk 0:00:02]} 40. Kg3 {[%clk 0:00:06]}  Qe1+ {[%clk 0:00:03]} 41. Kf3 {[%clk 0:00:05]}  Rxh2 {[%clk 0:00:03]} 42. Qc8+ {[%clk 0:00:06]}  Kg7 {[%clk 0:00:02]} 43. Qc3+ {[%clk 0:00:05]} 1-0


[Site "https://www.chess.com"]

[Event "Titled Tuesday Blitz June 28 Late 2022"]
[White "Dardha, Daniel"]
[Black "Vivas Zamora, Fabian Ernesto"]
[WhiteFideId "240990"]
[BlackFideId "3902480"]
[WhiteElo "2482"]
[BlackElo "2014"]
[Result "0-1"]
[Round "02"]
[TimeControl "180+1"]
[Date "2022.06.28"]
[WhiteClock "0:00:03"]
[BlackClock "0:00:03"]

1. d4 {[%clk 0:03:00]}  Nf6 {[%clk 0:02:59]} 2. c4 {[%clk 0:03:00]}  g6 {[%clk 0:02:59]} 3. f3 {[%clk 0:02:59]}  d5 {[%clk 0:02:56]} 4. cxd5 {[%clk 0:03:00]}  Nxd5 {[%clk 0:02:57]} 5. e4 {[%clk 0:03:00]}  Nb6 {[%clk 0:02:57]} 6. Nc3 {[%clk 0:02:59]}  Bg7 {[%clk 0:02:52]} 7. Be3 {[%clk 0:02:59]}  O-O {[%clk 0:02:31]} 8. Qd2 {[%clk 0:02:59]}  Nc6 {[%clk 0:02:31]} 9. Rd1 {[%clk 0:02:59]}  e5 {[%clk 0:02:17]} 10. dxe5 {[%clk 0:02:53]}  Qxd2+ {[%clk 0:02:09]} 11. Kxd2 {[%clk 0:02:47]}  Nxe5 {[%clk 0:02:01]} 12. Kc2 {[%clk 0:02:47]}  Nec4 {[%clk 0:01:51]} 13. Bc5 {[%clk 0:02:36]}  Nxb2 {[%clk 0:00:43]} 14. Bxf8 {[%clk 0:02:07]}  Nxd1 {[%clk 0:00:42]} 15. Bxg7 {[%clk 0:02:06]}  Nf2 {[%clk 0:00:32]} 16. Bd4 {[%clk 0:01:57]}  Nxh1 {[%clk 0:00:30]} 17. g3 {[%clk 0:01:56]}  Be6 {[%clk 0:00:18]} 18. Bg2 {[%clk 0:01:56]}  Nxg3 {[%clk 0:00:10]} 19. hxg3 {[%clk 0:01:55]}  Rd8 {[%clk 0:00:10]} 20. Nge2 {[%clk 0:01:55]}  Nc4 {[%clk 0:00:07]} 21. Kc1 {[%clk 0:01:48]}  b6 {[%clk 0:00:07]} 22. Bf1 {[%clk 0:01:41]}  c5 {[%clk 0:00:07]} 23. Bf6 {[%clk 0:01:41]}  Rd6 {[%clk 0:00:03]} 24. Nf4 {[%clk 0:01:39]}  Ne3 {[%clk 0:00:03]} 25. Be2 {[%clk 0:01:27]}  Bc4 {[%clk 0:00:04]} 26. Be5 {[%clk 0:01:25]}  Rd7 {[%clk 0:00:03]} 27. Bxc4 {[%clk 0:01:06]}  Nxc4 {[%clk 0:00:04]} 28. Bf6 {[%clk 0:01:07]}  Rd6 {[%clk 0:00:04]} 29. Ncd5 {[%clk 0:01:04]}  h6 {[%clk 0:00:04]} 30. e5 {[%clk 0:01:03]}  Rd7 {[%clk 0:00:03]} 31. Kc2 {[%clk 0:00:59]}  Rb7 {[%clk 0:00:04]} 32. Kd3 {[%clk 0:00:52]}  b5 {[%clk 0:00:04]} 33. Ne7+ {[%clk 0:00:44]}  Kh7 {[%clk 0:00:04]} 34. e6 {[%clk 0:00:41]}  fxe6 {[%clk 0:00:04]} 35. Nxe6 {[%clk 0:00:41]}  Ne5+ {[%clk 0:00:04]} 36. Ke4 {[%clk 0:00:40]}  Nd7 {[%clk 0:00:04]} 37. Bb2 {[%clk 0:00:33]}  c4 {[%clk 0:00:05]} 38. Kd5 {[%clk 0:00:20]}  b4 {[%clk 0:00:05]} 39. Nd8 {[%clk 0:00:15]}  c3 {[%clk 0:00:05]} 40. Bc1 {[%clk 0:00:13]}  Nb6+ {[%clk 0:00:03]} 41. Ke6 {[%clk 0:00:13]}  Rd7 {[%clk 0:00:03]} 42. Nf7 {[%clk 0:00:13]}  Rxe7+ {[%clk 0:00:02]} 43. Kxe7 {[%clk 0:00:13]}  a5 {[%clk 0:00:03]} 44. Ne5 {[%clk 0:00:06]}  a4 {[%clk 0:00:03]} 45. Nd3 {[%clk 0:00:06]}  b3 {[%clk 0:00:03]} 46. axb3 {[%clk 0:00:07]}  axb3 {[%clk 0:00:04]} 47. Bb2 {[%clk 0:00:02]}  cxb2 {[%clk 0:00:02]} 48. Nxb2 {[%clk 0:00:03]}  Nd5+ {[%clk 0:00:02]} 49. Kd6 {[%clk 0:00:03]}  Ne3 {[%clk 0:00:03]} 50. Ke5 {[%clk 0:00:03]}  h5 {[%clk 0:00:03]} 51. Ke4 {[%clk 0:00:03]}  Nf1 {[%clk 0:00:03]} 0-1


[Site "https://www.chess.com"]

[Event "Titled Tuesday Blitz June 28 Late 2022"]
[White "De La Colina, Nicolas"]
[Black "Ward, Ieuan C"]
[WhiteFideId "30946921"]
[BlackFideId "406627"]
[WhiteElo "2046"]
[BlackElo "2332"]
[Result "0-1"]
[Round "02"]
[TimeControl "180+1"]
[Date "2022.06.29"]
[WhiteClock "0:00:08"]
[BlackClock "0:00:25"]

1. e4 {[%clk 0:03:00]}  c5 {[%clk 0:02:59]} 2. c3 {[%clk 0:03:00]}  d5 {[%clk 0:02:59]} 3. exd5 {[%clk 0:03:00]}  Qxd5 {[%clk 0:03:00]} 4. Nf3 {[%clk 0:03:01]}  Nf6 {[%clk 0:03:00]} 5. d4 {[%clk 0:03:01]}  Nc6 {[%clk 0:03:00]} 6. dxc5 {[%clk 0:03:01]}  Qxc5 {[%clk 0:02:55]} 7. Na3 {[%clk 0:03:00]}  a6 {[%clk 0:02:53]} 8. Be3 {[%clk 0:02:59]}  Qh5 {[%clk 0:02:48]} 9. Nc4 {[%clk 0:02:23]}  Nd7 {[%clk 0:02:38]} 10. Be2 {[%clk 0:02:15]}  Qg6 {[%clk 0:02:33]} 11. O-O {[%clk 0:02:13]}  e6 {[%clk 0:02:25]} 12. Nd6+ {[%clk 0:02:08]}  Bxd6 {[%clk 0:02:25]} 13. Qxd6 {[%clk 0:02:09]}  e5 {[%clk 0:02:25]} 14. Bc5 {[%clk 0:01:54]}  Qxd6 {[%clk 0:02:09]} 15. Bxd6 {[%clk 0:01:55]}  f6 {[%clk 0:02:08]} 16. Rfe1 {[%clk 0:01:55]}  g6 {[%clk 0:01:54]} 17. Bc4 {[%clk 0:01:51]}  Nb6 {[%clk 0:01:49]} 18. Bb3 {[%clk 0:01:36]}  Bg4 {[%clk 0:01:44]} 19. Nd4 {[%clk 0:01:07]}  O-O-O {[%clk 0:01:32]} 20. Bc5 {[%clk 0:00:47]}  Nd7 {[%clk 0:01:14]} 21. Nxc6 {[%clk 0:00:46]}  bxc6 {[%clk 0:01:15]} 22. Be3 {[%clk 0:00:42]}  Rhe8 {[%clk 0:01:15]} 23. f3 {[%clk 0:00:41]}  Be6 {[%clk 0:01:14]} 24. Bc2 {[%clk 0:00:34]}  Kb7 {[%clk 0:01:09]} 25. b3 {[%clk 0:00:33]}  Nb6 {[%clk 0:01:08]} 26. Rad1 {[%clk 0:00:33]}  Nd5 {[%clk 0:01:05]} 27. Bd2 {[%clk 0:00:32]}  Rd7 {[%clk 0:00:59]} 28. c4 {[%clk 0:00:32]}  Nc7 {[%clk 0:00:56]} 29. Ba5 {[%clk 0:00:30]}  Red8 {[%clk 0:00:52]} 30. Rxd7 {[%clk 0:00:30]}  Rxd7 {[%clk 0:00:53]} 31. Rd1 {[%clk 0:00:30]}  Rxd1+ {[%clk 0:00:43]} 32. Bxd1 {[%clk 0:00:31]}  Bf5 {[%clk 0:00:37]} 33. Bb4 {[%clk 0:00:21]}  Bb1 {[%clk 0:00:35]} 34. a3 {[%clk 0:00:20]}  Ne6 {[%clk 0:00:34]} 35. Bc3 {[%clk 0:00:17]}  Nd4 {[%clk 0:00:32]} 36. Bxd4 {[%clk 0:00:15]}  exd4 {[%clk 0:00:33]} 37. b4 {[%clk 0:00:15]}  a5 {[%clk 0:00:32]} 38. Be2 {[%clk 0:00:11]}  axb4 {[%clk 0:00:31]} 39. axb4 {[%clk 0:00:12]}  c5 {[%clk 0:00:30]} 40. b5 {[%clk 0:00:08]}  d3 {[%clk 0:00:25]} 41. Bd1 {[%clk 0:00:08]}  Bc2 {[%clk 0:00:25]} 0-1


[Site "https://www.chess.com"]

[Event "Titled Tuesday Blitz June 28 Late 2022"]
[White "Deac, Bogdan-Daniel"]
[Black "Herman, Daniel"]
[WhiteFideId "1226380"]
[BlackFideId "30935008"]
[WhiteElo "2648"]
[BlackElo "1897"]
[Result "1-0"]
[Round "02"]
[TimeControl "180+1"]
[Date "2022.06.29"]
[WhiteClock "0:00:14"]
[BlackClock "0:00:03"]

1. Nf3 {[%clk 0:03:00]}  d5 {[%clk 0:02:58]} 2. g3 {[%clk 0:03:00]}  c6 {[%clk 0:02:56]} 3. Bg2 {[%clk 0:03:01]}  Bg4 {[%clk 0:02:56]} 4. O-O {[%clk 0:02:59]}  Nd7 {[%clk 0:02:56]} 5. d3 {[%clk 0:02:59]}  e6 {[%clk 0:02:53]} 6. c4 {[%clk 0:02:59]}  Ngf6 {[%clk 0:02:51]} 7. cxd5 {[%clk 0:02:58]}  exd5 {[%clk 0:02:50]} 8. h3 {[%clk 0:02:57]}  Bh5 {[%clk 0:02:48]} 9. Nc3 {[%clk 0:02:55]}  Bc5 {[%clk 0:02:42]} 10. Qc2 {[%clk 0:02:54]}  O-O {[%clk 0:02:39]} 11. e4 {[%clk 0:02:54]}  dxe4 {[%clk 0:02:31]} 12. dxe4 {[%clk 0:02:55]}  Bg6 {[%clk 0:02:31]} 13. Rd1 {[%clk 0:02:50]}  Qe7 {[%clk 0:02:19]} 14. Nh4 {[%clk 0:02:48]}  Rad8 {[%clk 0:01:56]} 15. Kh2 {[%clk 0:02:39]}  Bh5 {[%clk 0:01:44]} 16. f3 {[%clk 0:02:23]}  Ne5 {[%clk 0:01:24]} 17. Bf4 {[%clk 0:02:23]}  Nc4 {[%clk 0:01:14]} 18. Rxd8 {[%clk 0:02:03]}  Rxd8 {[%clk 0:01:15]} 19. Na4 {[%clk 0:02:03]}  b5 {[%clk 0:00:59]} 20. Nf5 {[%clk 0:01:58]}  Qf8 {[%clk 0:00:54]} 21. Nxc5 {[%clk 0:01:57]}  Qxc5 {[%clk 0:00:55]} 22. b3 {[%clk 0:01:57]}  g5 {[%clk 0:00:30]} 23. Bxg5 {[%clk 0:01:35]}  Qe5 {[%clk 0:00:30]} 24. Rd1 {[%clk 0:01:33]}  Rxd1 {[%clk 0:00:29]} 25. Qxd1 {[%clk 0:01:31]}  Nb6 {[%clk 0:00:25]} 26. Qd8+ {[%clk 0:01:22]}  Ne8 {[%clk 0:00:26]} 27. f4 {[%clk 0:01:07]}  Qe6 {[%clk 0:00:23]} 28. Ne7+ {[%clk 0:01:07]}  Kf8 {[%clk 0:00:20]} 29. Nf5 {[%clk 0:00:50]}  f6 {[%clk 0:00:16]} 30. Bh6+ {[%clk 0:00:35]}  Kf7 {[%clk 0:00:16]} 31. g4 {[%clk 0:00:27]}  Bg6 {[%clk 0:00:16]} 32. Nd4 {[%clk 0:00:27]}  Qe7 {[%clk 0:00:07]} 33. Qxe7+ {[%clk 0:00:18]}  Kxe7 {[%clk 0:00:08]} 34. f5 {[%clk 0:00:18]}  Bf7 {[%clk 0:00:07]} 35. Nxc6+ {[%clk 0:00:18]}  Kd6 {[%clk 0:00:08]} 36. Nxa7 {[%clk 0:00:18]}  Ke5 {[%clk 0:00:08]} 37. Nxb5 {[%clk 0:00:15]}  Nd7 {[%clk 0:00:06]} 38. Kg3 {[%clk 0:00:14]}  Nc5 {[%clk 0:00:03]} 39. Bf4# {[%clk 0:00:14]} 1-0


[Site "https://www.chess.com"]

[Event "Titled Tuesday Blitz June 28 Late 2022"]
[White "Della Morte, German"]
[Black "Khismatullin, Denis"]
[WhiteFideId "113522"]
[BlackFideId "4142578"]
[WhiteElo "2363"]
[BlackElo "2543"]
[Result "0-1"]
[Round "02"]
[TimeControl "180+1"]
[Date "2022.06.28"]
[WhiteClock "0:00:06"]
[BlackClock "0:00:32"]

1. e4 {[%clk 0:03:00]}  c5 {[%clk 0:02:57]} 2. Nf3 {[%clk 0:03:01]}  d6 {[%clk 0:02:57]} 3. d4 {[%clk 0:03:01]}  cxd4 {[%clk 0:02:58]} 4. Nxd4 {[%clk 0:03:02]}  Nf6 {[%clk 0:02:58]} 5. Nc3 {[%clk 0:03:02]}  a6 {[%clk 0:02:59]} 6. Bg5 {[%clk 0:03:02]}  Nbd7 {[%clk 0:02:59]} 7. f4 {[%clk 0:03:02]}  Qc7 {[%clk 0:02:59]} 8. Qf3 {[%clk 0:03:01]}  b5 {[%clk 0:02:59]} 9. O-O-O {[%clk 0:02:59]}  Bb7 {[%clk 0:02:59]} 10. Nd5 {[%clk 0:02:55]}  Nxd5 {[%clk 0:02:42]} 11. exd5 {[%clk 0:02:56]}  h6 {[%clk 0:02:33]} 12. Bh4 {[%clk 0:02:55]}  e5 {[%clk 0:02:21]} 13. Nb3 {[%clk 0:02:48]}  exf4 {[%clk 0:02:12]} 14. Qxf4 {[%clk 0:02:41]}  g5 {[%clk 0:02:05]} 15. Qe4+ {[%clk 0:02:35]}  Ne5 {[%clk 0:02:04]} 16. Bg3 {[%clk 0:02:35]}  Bg7 {[%clk 0:01:53]} 17. Nd4 {[%clk 0:02:33]}  O-O-O {[%clk 0:01:51]} 18. Nf5 {[%clk 0:02:34]}  Bf6 {[%clk 0:01:51]} 19. Kb1 {[%clk 0:02:22]}  Kb8 {[%clk 0:01:51]} 20. Be2 {[%clk 0:02:02]}  h5 {[%clk 0:01:51]} 21. h3 {[%clk 0:01:57]}  Rc8 {[%clk 0:01:49]} 22. c3 {[%clk 0:01:45]}  h4 {[%clk 0:01:49]} 23. Bf2 {[%clk 0:01:40]}  Rhe8 {[%clk 0:01:49]} 24. Qb4 {[%clk 0:01:34]}  Nd7 {[%clk 0:01:35]} 25. Bg4 {[%clk 0:01:23]}  Nc5 {[%clk 0:01:25]} 26. Bd4 {[%clk 0:01:05]}  Bxd4 {[%clk 0:01:23]} 27. cxd4 {[%clk 0:01:05]}  Ne4 {[%clk 0:01:23]} 28. Rc1 {[%clk 0:01:00]}  Qb6 {[%clk 0:01:04]} 29. Rxc8+ {[%clk 0:00:40]}  Rxc8 {[%clk 0:01:05]} 30. Ne3 {[%clk 0:00:24]}  Rc7 {[%clk 0:01:00]} 31. Bf3 {[%clk 0:00:21]}  a5 {[%clk 0:00:59]} 32. Qe1 {[%clk 0:00:20]}  Qxd4 {[%clk 0:00:56]} 33. Nc2 {[%clk 0:00:14]}  Nd2+ {[%clk 0:00:53]} 34. Kc1 {[%clk 0:00:08]}  Nxf3 {[%clk 0:00:52]} 35. gxf3 {[%clk 0:00:09]}  Qc4 {[%clk 0:00:36]} 36. Rh2 {[%clk 0:00:09]}  Qxa2 {[%clk 0:00:34]} 37. Qe8+ {[%clk 0:00:09]}  Rc8 {[%clk 0:00:31]} 38. Qxb5 {[%clk 0:00:10]}  Qxd5 {[%clk 0:00:30]} 39. Qxd5 {[%clk 0:00:09]}  Bxd5 {[%clk 0:00:31]} 40. Rf2 {[%clk 0:00:07]}  Bb3 {[%clk 0:00:30]} 41. Kd1 {[%clk 0:00:01]}  Rxc2 {[%clk 0:00:30]} 42. Rxc2 {[%clk 0:00:02]}  d5 {[%clk 0:00:30]} 43. Kc1 {[%clk 0:00:03]}  Bxc2 {[%clk 0:00:30]} 44. Kxc2 {[%clk 0:00:03]}  Kc7 {[%clk 0:00:31]} 45. Kd3 {[%clk 0:00:04]}  Kd6 {[%clk 0:00:31]} 46. Kd4 {[%clk 0:00:05]}  f5 {[%clk 0:00:31]} 47. Kd3 {[%clk 0:00:06]}  Kc5 {[%clk 0:00:32]} 0-1


[Site "https://www.chess.com"]